fUSD/lending_fUSD_20241119
["ID","MTS","AMOUNT","RATE_DAILY","PERIOD"]
[342642182,1732019438291,-500.0,9.999e-05,2]
[342642183,1732019438300,-500.0,9.999e-05,2]
[342642184,1732019438312,-500.0,9.999e-05,2]
[342642185,1732019438322,-415.09,9.999e-05,2]
[342642186,1732019438332,-500.0,9.999e-05,2]
[342642187,1732019438341,-500.0,9.999e-05,2]
[342642188,1732019438351,-500.0,9.999e-05,2]
[342642189,1732019438361,-500.0,9.999e-05,2]
[342642190,1732019438370,-352.72,9.999e-05,2]
[342642191,1732019438379,-283.68022064,9.999e-05,2]
[342642192,1732019438389,-500.0,9.999e-05,2]
[342642193,1732019438398,-500.0,9.999e-05,2]
[342642194,1732019438407,-500.0,9.999e-05,2]
[342642195,1732019438416,-500.0,9.999e-05,2]
[342642196,1732019438426,-807.50000199,9.999e-05,2]
[342642197,1732019438435,-500.0,9.999e-05,2]
[342642198,1732019438445,-500.0,9.999e-05,2]
[342642199,1732019438454,-500.0,9.999e-05,2]
[342642200,1732019438463,-500.0,9.999e-05,2]
[342642201,1732019438472,-500.0,9.999e-05,2]
[342642202,1732019438482,-500.0,9.999e-05,2]
[342642204,1732019438491,-204.73,9.999e-05,2]
[342642206,1732019438500,-500.0,9.999e-05,2]
[342642208,1732019438510,-558.11,9.999e-05,2]
[342642210,1732019438520,-500.0,9.999e-05,2]
[342642211,1732019438530,-500.0,9.999e-05,2]
[342642212,1732019438540,-375.8,9.999e-05,2]
[342642213,1732019438550,-500.0,9.999e-05,2]
[342642214,1732019438562,-212.95034581,9.999e-05,2]
[342642215,1732019438571,-500.0,9.999e-05,2]
[342642216,1732019438580,-537.73301073,9.999e-05,2]
[342642217,1732019438589,-500.0,9.999e-05,2]
[342642218,1732019438598,-500.0,9.999e-05,2]
[342642219,1732019438607,-500.0,9.999e-05,2]
[342642220,1732019438616,-500.0,9.999e-05,2]
[342642221,1732019438626,-634.48290811,9.999e-05,2]
[342642222,1732019438635,-500.0,9.999e-05,2]
[342642223,1732019438644,-532.50477677,9.999e-05,2]
[342642224,1732019438653,-500.0,9.999e-05,2]
[342642225,1732019438663,-500.0,9.999e-05,2]
[342642226,1732019438672,-505.76,9.999e-05,2]
[342642227,1732019438681,-500.0,9.999e-05,2]
[342642228,1732019438690,-500.0,9.999e-05,2]
[342642229,1732019438700,-500.0,9.999e-05,2]
[342642230,1732019438713,-500.0,9.999e-05,2]
[342642231,1732019438722,-500.0,9.999e-05,2]
[342642232,1732019438731,-500.0,9.999e-05,2]
[342642233,1732019438740,-500.0,9.999e-05,2]
[342642234,1732019438751,-500.0,9.999e-05,2]
[342642235,1732019438760,-500.0,9.999e-05,2]
[342642236,1732019438769,-500.0,9.999e-05,2]
[342642237,1732019438779,-543.38,9.999e-05,2]
[342642238,1732019438789,-500.0,9.999e-05,2]
[342642239,1732019438798,-500.0,9.999e-05,2]
[342642240,1732019438809,-500.0,9.999e-05,2]
[342642241,1732019438819,-500.0,9.999e-05,2]
[342642242,1732019438828,-500.0,9.999e-05,2]
[342642243,1732019438837,-500.0,9.999e-05,2]
[342642244,1732019438846,-500.0,9.999e-05,2]
[342642245,1732019438855,-500.0,9.999e-05,2]
[342642246,1732019438864,-500.0,9.999e-05,2]
[342642247,1732019438874,-500.0,9.999e-05,2]
[342642248,1732019438883,-500.0,9.999e-05,2]
[342642249,1732019438893,-500.0,9.999e-05,2]
[342642250,1732019438902,-500.0,9.999e-05,2]
[342642251,1732019438911,-500.0,9.999e-05,2]
[342642252,1732019438921,-500.0,9.999e-05,2]
[342642253,1732019438930,-500.0,9.999e-05,2]
[342642254,1732019438939,-549.46,9.999e-05,2]
[342642255,1732019438949,-500.0,9.999e-05,2]
[342642256,1732019438958,-500.0,9.999e-05,2]
[342642257,1732019438968,-500.0,9.999e-05,2]
[342642258,1732019438977,-500.0,9.999e-05,2]
[342642259,1732019438987,-500.0,9.999e-05,2]
[342642260,1732019438996,-500.0,9.999e-05,2]
[342642261,1732019439005,-500.0,9.999e-05,2]
[342642262,1732019439014,-500.0,9.999e-05,2]
[342642263,1732019439024,-500.0,9.999e-05,2]
[342642264,1732019439033,-500.0,9.999e-05,2]
[342642265,1732019439043,-500.0,9.999e-05,2]
[342642266,1732019439052,-443.83,9.999e-05,2]
[342642267,1732019439063,-500.0,9.999e-05,2]
[342642268,1732019439072,-500.0,9.999e-05,2]
[342642269,1732019439082,-266.42,9.999e-05,2]
[342642270,1732019439092,-500.0,9.999e-05,2]
[342642271,1732019439102,-500.0,9.999e-05,2]
[342642272,1732019439112,-500.0,9.999e-05,2]
[342642273,1732019439122,-500.0,9.999e-05,2]
[342642274,1732019439131,-500.0,9.999e-05,2]
[342642275,1732019439141,-367.89046592,9.999e-05,2]
[342642276,1732019439152,-500.0,9.999e-05,2]
[342642277,1732019439161,-500.0,9.999e-05,2]
[342642278,1732019439171,-500.0,9.999e-05,2]
[342642279,1732019439180,-220.05034089,9.999e-05,2]
[342642280,1732019439189,-4449.04493994,9.999e-05,2]
[342642281,1732019439198,-4449.04493994,9.999e-05,2]
[342642282,1732019439207,-4449.04493994,0.0001,2]
[342642283,1732019439216,-500309.94175866,0.0001,2]
[342642284,1732019439225,-10559.23769409,0.0001,2]
[342642285,1732019439234,-4449.04493994,0.0001,2]
[342642286,1732019439243,-5016054.17611586,0.0001,2]
[342642287,1732019439513,-500.0,9.997e-05,2]
[342642288,1732019439523,-5783.93681002,0.0001,2]
[342642289,1732019439534,-2661.8910995,0.0001,2]
[342642290,1732019439545,-104427.757695,0.0001,2]
[342642291,1732019439559,-46219.6726735,0.0001,2]
[342642292,1732019439585,-550.2330322,0.0001,2]
[342642295,1732019440153,-500.0,9.997e-05,2]
[342642296,1732019440162,-500.0,9.997e-05,2]
[342642297,1732019440171,-500.0,9.997e-05,2]
[342642298,1732019440180,-500.0,9.997e-05,2]
[342642299,1732019440189,-500.0,9.997e-05,2]
[342642300,1732019440198,-504.204536,9.997e-05,2]
[342642301,1732019440207,-500.0,9.997e-05,2]
[342642302,1732019440218,-399.41,9.997e-05,2]
[342642303,1732019440227,-500.0,9.997e-05,2]
[342642304,1732019440237,-242.68,9.997e-05,2]
[342642305,1732019440248,-500.0,9.998e-05,2]
[342642306,1732019440257,-500.0,9.999e-05,2]
[342642307,1732019440266,-500.0,9.999e-05,2]
[342642308,1732019440275,-307.66,9.999e-05,2]
[342642309,1732019440284,-14834414.9957541,0.0001,2]
[342642310,1732019440299,-923.1955864,0.0001,2]
[342642311,1732019440312,-345.1123749,0.0001,2]
[342642312,1732019440323,-1600.27877487,0.0001,2]
[342642313,1732019440334,-550.03311121,0.0001,2]
[342642314,1732019440397,-570.53378467,0.0001,2]
[342642318,1732019440486,-500.0,9.997e-05,2]
[342642320,1732019440495,-367.74640596,0.0001,2]
[342642322,1732019440507,-1146.80056203,0.0001,2]
[342642324,1732019440518,-7382.14672,0.0001,2]
[342642326,1732019440538,-372.37,0.0001,2]
[342642327,1732019440550,-923.0925,0.0001,2]
[342642328,1732019440577,-500.0,9.997e-05,2]
[342642329,1732019440587,-3335.89065424,0.0001,2]
[342642330,1732019440598,-2765.91435489,0.0001,2]
[342642331,1732019440609,-91437.13490549,0.0001,2]
[342642332,1732019440622,-1023.25,0.0001,2]
[342642333,1732019440863,2000.0,0.00012,15]
[342642341,1732019443263,-500.0,9.997e-05,2]
[342642342,1732019443273,-318.55155433,9.997e-05,2]
[342642343,1732019443284,-181.44844567,9.997e-05,2]
[342642344,1732019443294,-500.0,9.997e-05,2]
[342642345,1732019443303,-153.13,9.997e-05,2]
[342642346,1732019443314,-24545.42155433,0.0001,2]
[342642347,1732019443326,-225136.67148818,0.0001,2]
[342642348,1732019443337,-4998.62378509,0.0001,2]
[342642349,1732019443349,-1498.92866,0.0001,2]
[342642350,1732019443383,-4352.06727543,0.0001,2]
[342642351,1732019443399,-1217.04150045,0.0001,2]
[342642352,1732019443410,-2947.35888746,0.0001,2]
[342642353,1732019443421,-829942.89155338,0.0001,2]
[342642354,1732019443444,-441.74327542,0.0001,2]
[342642355,1732019443505,-1476.66338,0.0001,2]
[342642356,1732019443516,-4603.8,0.0001,2]
[342642357,1732019443527,-4998.52531747,0.0001,2]
[342642358,1732019443566,-322.5100008,0.0001,2]
[342642370,1732019446070,-61662.15304618,0.0001,2]
[342642372,1732019446082,-8921.89973734,0.0001,2]
[342642374,1732019446093,-19530.21151025,0.0001,2]
[342642376,1732019446104,-18493.41605008,0.0001,2]
[342642377,1732019446184,-9259.21861428,0.0001,2]
[342642378,1732019446244,-987.44943811,0.0001,2]
[342642379,1732019446257,-388.43811,0.0001,2]
[342642380,1732019446268,-524.98442595,0.0001,2]
[342642381,1732019446279,-4603.9,0.0001,2]
[342642382,1732019446310,-31845.4559998,0.0001,2]
[342642389,1732019446647,-1443933.55422542,0.0001,2]
[342642390,1732019446661,-1113.70970627,0.0001,2]
[342642391,1732019504716,500.0,8.22e-05,2]
[342642401,1732019900657,1005.55,8.219e-05,2]
[342642440,1732020572121,-250.0,8.937e-05,2]
[342642441,1732020572142,-300.0,8.937e-05,2]
[342642442,1732020572164,-176.1114,8.954e-05,2]
[342642487,1732020632371,-571.51368121,8.954e-05,2]
[342642488,1732020632546,-252.37491879,8.954e-05,2]
[342642489,1732020632559,-571.51,8.962e-05,2]
[342642490,1732020632569,-1672.68,8.972e-05,2]
[342642491,1732020632579,-165.55,9.005e-05,2]
[342642492,1732020632591,-275.08,9.075e-05,2]
[342642493,1732020632602,-250.0,9.076e-05,2]
[342642494,1732020632613,-160.5,9.112e-05,2]
[342642495,1732020632623,-167.96,9.241e-05,2]
[342642496,1732020632635,-150.0,9.342e-05,2]
[342642497,1732020632645,-334.0,9.702e-05,2]
[342642498,1732020632655,-3214.0,9.702e-05,2]
[342642499,1732020632666,-1519.5,9.702e-05,2]
[342642500,1732020632677,-766.71,9.702e-05,2]
[342642501,1732020632688,-150.0,9.822e-05,2]
[342642502,1732020632699,-250.0,9.89e-05,2]
[342642503,1732020632710,-433.37,9.894e-05,2]
[342642504,1732020632722,-518.78133681,9.897e-05,2]
[342642505,1732020632733,-150.0,9.897e-05,2]
[342642506,1732020632744,-256.7803,9.898e-05,2]
[342642507,1732020632755,-73265.14097744,9.898e-05,2]
[342642508,1732020632768,-11975.38572256,9.898e-05,2]
[342642509,1732020632777,-784.85,9.9e-05,2]
[342642510,1732020632787,-433.37,9.9e-05,2]
[342642511,1732020632796,-433.37,9.9e-05,2]
[342642512,1732020632806,-433.37,9.9e-05,2]
[342642513,1732020632817,-433.37,9.9e-05,2]
[342642514,1732020632827,-433.37,9.9e-05,2]
[342642515,1732020632839,-766.2699,9.9e-05,2]
[342642517,1732020632851,-150.0,9.9e-05,2]
[342642518,1732020632863,-500.0,9.92e-05,2]
[342642519,1732020632875,-500.0,9.997e-05,2]
[342642520,1732020632887,-500.0,9.997e-05,2]
[342642521,1732020632897,-487.9,9.997e-05,2]
[342642522,1732020632907,-207.2327828,9.997e-05,2]
[342642523,1732020632916,-332.65504817,9.997e-05,2]
[342642524,1732020632926,-500.0,9.997e-05,2]
[342642525,1732020632937,-500.0,9.997e-05,2]
[342642526,1732020632947,-76.85856161,9.997e-05,2]
[342642527,1732020632961,-423.14143839,9.997e-05,2]
[342642528,1732020632971,-500.0,9.997e-05,2]
[342642529,1732020632982,-645.46,9.997e-05,2]
[342642530,1732020632993,-500.0,9.997e-05,2]
[342642531,1732020633004,-500.0,9.997e-05,2]
[342642532,1732020633015,-500.0,9.997e-05,2]
[342642533,1732020633024,-500.0,9.997e-05,2]
[342642534,1732020633036,-464.78,9.997e-05,2]
[342642535,1732020633048,-500.0,9.997e-05,2]
[342642536,1732020633058,-500.0,9.997e-05,2]
[342642537,1732020633069,-500.0,9.997e-05,2]
[342642538,1732020633079,-321.48648146,9.997e-05,2]
[342642539,1732020633092,-500.0,9.997e-05,2]
[342642540,1732020633102,-588.57790615,9.997e-05,2]
[342642541,1732020633121,-500.0,9.997e-05,2]
[342642542,1732020633132,-500.0,9.997e-05,2]
[342642543,1732020633143,-500.0,9.997e-05,2]
[342642544,1732020633155,-500.0,9.997e-05,2]
[342642545,1732020633166,-500.0,9.997e-05,2]
[342642546,1732020633177,-500.0,9.997e-05,2]
[342642547,1732020633188,-174.78,9.997e-05,2]
[342642548,1732020633199,-500.0,9.997e-05,2]
[342642549,1732020633211,-500.0,9.997e-05,2]
[342642550,1732020633222,-500.0,9.997e-05,2]
[342642551,1732020633233,-500.0,9.997e-05,2]
[342642552,1732020633244,-500.0,9.997e-05,2]
[342642553,1732020633255,-500.0,9.997e-05,2]
[342642554,1732020633266,-500.0,9.997e-05,2]
[342642555,1732020633278,-500.0,9.997e-05,2]
[342642556,1732020633289,-500.0,9.997e-05,2]
[342642557,1732020633301,-500.0,9.997e-05,2]
[342642558,1732020633312,-500.0,9.997e-05,2]
[342642559,1732020633323,-500.0,9.997e-05,2]
[342642560,1732020633334,-211.0,9.997e-05,2]
[342642561,1732020633345,-500.0,9.997e-05,2]
[342642562,1732020633356,-500.0,9.997e-05,2]
[342642563,1732020633367,-500.0,9.997e-05,2]
[342642564,1732020633379,-500.0,9.997e-05,2]
[342642565,1732020633390,-268.36,9.997e-05,2]
[342642566,1732020633400,-155.78416184,9.997e-05,2]
[342642567,1732020633411,-14557.56197568,9.997e-05,2]
[342642568,1732020633422,-500.0,9.997e-05,2]
[342642569,1732020633433,-500.0,9.997e-05,2]
[342642570,1732020633448,-500.0,9.997e-05,2]
[342642571,1732020633458,-500.0,9.997e-05,2]
[342642572,1732020633469,-500.0,9.997e-05,2]
[342642573,1732020633480,-223.34,9.997e-05,2]
[342642574,1732020633491,-500.0,9.997e-05,2]
[342642575,1732020633501,-500.0,9.997e-05,2]
[342642576,1732020633512,-500.0,9.997e-05,2]
[342642577,1732020633524,-500.0,9.997e-05,2]
[342642578,1732020633535,-500.0,9.997e-05,2]
[342642579,1732020633546,-261.93,9.997e-05,2]
[342642580,1732020633557,-500.0,9.997e-05,2]
[342642581,1732020633568,-500.0,9.997e-05,2]
[342642582,1732020633579,-500.0,9.997e-05,2]
[342642583,1732020633590,-587.78551227,9.997e-05,2]
[342642584,1732020633601,-500.0,9.997e-05,2]
[342642585,1732020633613,-500.0,9.997e-05,2]
[342642586,1732020633624,-500.0,9.997e-05,2]
[342642587,1732020633635,-500.0,9.997e-05,2]
[342642588,1732020633646,-500.0,9.997e-05,2]
[342642589,1732020633658,-336.19,9.997e-05,2]
[342642590,1732020633669,-500.0,9.997e-05,2]
[342642591,1732020633680,-500.0,9.997e-05,2]
[342642592,1732020633691,-500.0,9.997e-05,2]
[342642593,1732020633702,-500.0,9.997e-05,2]
[342642594,1732020633713,-500.0,9.997e-05,2]
[342642595,1732020633724,-500.0,9.997e-05,2]
[342642596,1732020633736,-500.0,9.997e-05,2]
[342642597,1732020633746,-500.0,9.997e-05,2]
[342642598,1732020633757,-500.0,9.997e-05,2]
[342642599,1732020633768,-500.0,9.997e-05,2]
[342642600,1732020633779,-500.0,9.997e-05,2]
[342642601,1732020633790,-500.0,9.997e-05,2]
[342642602,1732020633801,-500.0,9.997e-05,2]
[342642603,1732020633811,-500.0,9.997e-05,2]
[342642604,1732020633822,-500.0,9.997e-05,2]
[342642605,1732020633832,-186.66568676,9.997e-05,2]
[342642606,1732020633844,-500.0,9.997e-05,2]
[342642607,1732020633855,-439.95,9.997e-05,2]
[342642608,1732020633870,-500.0,9.997e-05,2]
[342642609,1732020633881,-500.0,9.997e-05,2]
[342642610,1732020633891,-500.0,9.997e-05,2]
[342642611,1732020633902,-271.2,9.997e-05,2]
[342642612,1732020633913,-500.0,9.997e-05,2]
[342642613,1732020633924,-200.98290878,9.997e-05,2]
[342642614,1732020633935,-14557.56197562,9.997e-05,2]
[342642615,1732020633946,-14557.56197562,9.998e-05,2]
[342642616,1732020633958,-500.0,9.998e-05,2]
[342642617,1732020633970,-3163.334,9.998e-05,2]
[342642618,1732020633982,-182.29,9.998e-05,2]
[342642619,1732020633993,-14557.56197562,9.998e-05,2]
[342642620,1732020634004,-604.83,9.998e-05,2]
[342642621,1732020634015,-500.0,9.998e-05,2]
[342642622,1732020634026,-500.0,9.998e-05,2]
[342642623,1732020634039,-500.0,9.998e-05,2]
[342642624,1732020634051,-500.0,9.998e-05,2]
[342642625,1732020634062,-500.0,9.998e-05,2]
[342642626,1732020634073,-500.0,9.998e-05,2]
[342642627,1732020634084,-500.0,9.998e-05,2]
[342642628,1732020634095,-500.0,9.998e-05,2]
[342642629,1732020634107,-616.81,9.998e-05,2]
[342642630,1732020634119,-500.0,9.998e-05,2]
[342642631,1732020634129,-500.0,9.998e-05,2]
[342642632,1732020634140,-500.0,9.998e-05,2]
[342642633,1732020634151,-14557.56197562,9.998e-05,2]
[342642634,1732020634162,-14557.56197562,9.999e-05,2]
[342642635,1732020634173,-2761.39,9.999e-05,2]
[342642636,1732020634183,-500.0,9.999e-05,2]
[342642637,1732020634193,-500.0,9.999e-05,2]
[342642638,1732020634203,-500.0,9.999e-05,2]
[342642639,1732020634214,-407.16,9.999e-05,2]
[342642640,1732020634224,-754.38328563,9.999e-05,2]
[342642641,1732020634234,-224.40744954,9.999e-05,2]
[342642642,1732020634244,-500.0,9.999e-05,2]
[342642643,1732020634255,-500.0,9.999e-05,2]
[342642644,1732020634265,-500.0,9.999e-05,2]
[342642645,1732020634274,-500.0,9.999e-05,2]
[342642646,1732020634284,-213.26,9.999e-05,2]
[342642647,1732020634295,-500.0,9.999e-05,2]
[342642648,1732020634305,-527.57,9.999e-05,2]
[342642649,1732020634315,-500.0,9.999e-05,2]
[342642650,1732020634324,-500.0,9.999e-05,2]
[342642651,1732020634334,-500.0,9.999e-05,2]
[342642652,1732020634344,-500.0,9.999e-05,2]
[342642653,1732020634355,-500.0,9.999e-05,2]
[342642654,1732020634365,-206.56550534,9.999e-05,2]
[342642655,1732020634376,-150.0,9.999e-05,2]
[342642656,1732020634386,-150.0,9.999e-05,2]
[342642657,1732020634396,-648.56114925,9.999e-05,2]
[342642658,1732020634406,-500.0,9.999e-05,2]
[342642659,1732020634417,-500.0,9.999e-05,2]
[342642660,1732020634428,-500.0,9.999e-05,2]
[342642661,1732020634438,-500.0,9.999e-05,2]
[342642662,1732020634448,-500.0,9.999e-05,2]
[342642663,1732020634459,-191.81,9.999e-05,2]
[342642664,1732020634468,-500.0,9.999e-05,2]
[342642665,1732020634478,-500.0,9.999e-05,2]
[342642666,1732020634488,-500.0,9.999e-05,2]
[342642667,1732020634499,-500.0,9.999e-05,2]
[342642668,1732020634509,-500.0,9.999e-05,2]
[342642669,1732020634519,-500.0,9.999e-05,2]
[342642670,1732020634530,-500.0,9.999e-05,2]
[342642671,1732020634539,-500.0,9.999e-05,2]
[342642672,1732020634550,-401.62,9.999e-05,2]
[342642673,1732020634560,-534.36906116,9.999e-05,2]
[342642674,1732020634570,-500.0,9.999e-05,2]
[342642675,1732020634580,-500.0,9.999e-05,2]
[342642676,1732020634590,-14557.56197562,9.999e-05,2]
[342642677,1732020634601,-500.0,9.999e-05,2]
[342642678,1732020634612,-500.0,9.999e-05,2]
[342642679,1732020634622,-537.89490923,9.999e-05,2]
[342642680,1732020634632,-500.0,9.999e-05,2]
[342642681,1732020634642,-500.0,9.999e-05,2]
[342642682,1732020634655,-500.0,9.999e-05,2]
[342642683,1732020634665,-500.0,9.999e-05,2]
[342642684,1732020634675,-500.0,9.999e-05,2]
[342642685,1732020634685,-500.0,9.999e-05,2]
[342642686,1732020634695,-500.0,9.999e-05,2]
[342642687,1732020634705,-500.0,9.999e-05,2]
[342642688,1732020634715,-160.75,9.999e-05,2]
[342642689,1732020634726,-500.0,9.999e-05,2]
[342642690,1732020634736,-500.0,9.999e-05,2]
[342642691,1732020634746,-500.0,9.999e-05,2]
[342642692,1732020634757,-1000.0,9.999e-05,2]
[342642693,1732020634767,-1000.0,9.999e-05,2]
[342642694,1732020634779,-972.89,9.999e-05,2]
[342642695,1732020634790,-500.0,9.999e-05,2]
[342642696,1732020634800,-500.0,9.999e-05,2]
[342642697,1732020634810,-500.0,9.999e-05,2]
[342642698,1732020634822,-500.0,9.999e-05,2]
[342642699,1732020634833,-589.91,9.999e-05,2]
[342642700,1732020634843,-500.0,9.999e-05,2]
[342642701,1732020634853,-500.0,9.999e-05,2]
[342642702,1732020634864,-500.0,9.999e-05,2]
[342642703,1732020634874,-500.0,9.999e-05,2]
[342642704,1732020634885,-500.0,9.999e-05,2]
[342642705,1732020634895,-500.0,9.999e-05,2]
[342642706,1732020634907,-242.68,9.999e-05,2]
[342642707,1732020634918,-500.0,9.999e-05,2]
[342642708,1732020634929,-500.0,9.999e-05,2]
[342642709,1732020634940,-500.0,9.999e-05,2]
[342642710,1732020634951,-500.0,9.999e-05,2]
[342642711,1732020634962,-531.43,9.999e-05,2]
[342642712,1732020634972,-500.0,9.999e-05,2]
[342642713,1732020634982,-500.0,9.999e-05,2]
[342642714,1732020634993,-500.0,9.999e-05,2]
[342642715,1732020635003,-151.07,9.999e-05,2]
[342642716,1732020635013,-500.0,9.999e-05,2]
[342642717,1732020635024,-500.0,9.999e-05,2]
[342642718,1732020635038,-500.0,9.999e-05,2]
[342642719,1732020635050,-500.0,9.999e-05,2]
[342642720,1732020635061,-349.76,9.999e-05,2]
[342642721,1732020635072,-500.0,9.999e-05,2]
[342642722,1732020635084,-500.0,9.999e-05,2]
[342642723,1732020635095,-500.0,9.999e-05,2]
[342642724,1732020635107,-500.0,9.999e-05,2]
[342642725,1732020635119,-500.0,9.999e-05,2]
[342642726,1732020635130,-500.0,9.999e-05,2]
[342642727,1732020635141,-368.74,9.999e-05,2]
[342642728,1732020635154,-172.71003502,9.999e-05,2]
[342642729,1732020635165,-500.0,9.999e-05,2]
[342642730,1732020635175,-500.0,9.999e-05,2]
[342642731,1732020635187,-500.0,9.999e-05,2]
[342642732,1732020635198,-500.0,9.999e-05,2]
[342642733,1732020635210,-500.0,9.999e-05,2]
[342642734,1732020635221,-177.77,9.999e-05,2]
[342642735,1732020635232,-500.0,9.999e-05,2]
[342642736,1732020635244,-500.0,9.999e-05,2]
[342642737,1732020635255,-500.0,9.999e-05,2]
[342642738,1732020635265,-500.0,9.999e-05,2]
[342642739,1732020635276,-500.0,9.999e-05,2]
[342642740,1732020635286,-514.69,9.999e-05,2]
[342642741,1732020635297,-500.0,9.999e-05,2]
[342642742,1732020635307,-500.0,9.999e-05,2]
[342642743,1732020635318,-500.0,9.999e-05,2]
[342642744,1732020635328,-500.0,9.999e-05,2]
[342642745,1732020635340,-575.39,9.999e-05,2]
[342642746,1732020635352,-435.26736128,9.999e-05,2]
[342642747,1732020635364,-500.0,9.999e-05,2]
[342642748,1732020635374,-163.71,9.999e-05,2]
[342642749,1732020635384,-500.0,9.999e-05,2]
[342642750,1732020635394,-500.0,9.999e-05,2]
[342642751,1732020635404,-500.0,9.999e-05,2]
[342642752,1732020635415,-329.51,9.999e-05,2]
[342642753,1732020635427,-500.0,9.999e-05,2]
[342642754,1732020635439,-500.0,9.999e-05,2]
[342642755,1732020635859,-500.0,9.999e-05,2]
[342642756,1732020635877,-243.03,9.999e-05,2]
[342642757,1732020635889,-500.0,9.999e-05,2]
[342642758,1732020635899,-592.48,9.999e-05,2]
[342642759,1732020635909,-500.0,9.999e-05,2]
[342642760,1732020635919,-500.0,9.999e-05,2]
[342642761,1732020635929,-500.0,9.999e-05,2]
[342642762,1732020635939,-500.0,9.999e-05,2]
[342642763,1732020635950,-500.0,9.999e-05,2]
[342642764,1732020635960,-500.0,9.999e-05,2]
[342642765,1732020635970,-500.0,9.999e-05,2]
[342642766,1732020635980,-500.0,9.999e-05,2]
[342642767,1732020635990,-508.27,9.999e-05,2]
[342642768,1732020635999,-500.0,9.999e-05,2]
[342642769,1732020636009,-500.0,9.999e-05,2]
[342642770,1732020636019,-500.0,9.999e-05,2]
[342642771,1732020636029,-500.0,9.999e-05,2]
[342642772,1732020636039,-500.0,9.999e-05,2]
[342642773,1732020636051,-500.0,9.999e-05,2]
[342642774,1732020636061,-298.41,9.999e-05,2]
[342642775,1732020636071,-500.0,9.999e-05,2]
[342642776,1732020636080,-243.94,9.999e-05,2]
[342642777,1732020636090,-500.0,9.999e-05,2]
[342642778,1732020636099,-500.0,9.999e-05,2]
[342642779,1732020636110,-606.26480625,9.999e-05,2]
[342642780,1732020636121,-500.0,9.999e-05,2]
[342642781,1732020636131,-500.0,9.999e-05,2]
[342642782,1732020636140,-500.0,9.999e-05,2]
[342642783,1732020636149,-500.0,9.999e-05,2]
[342642784,1732020636158,-331.11,9.999e-05,2]
[342642785,1732020636168,-500.0,9.999e-05,2]
[342642786,1732020636178,-375.19,9.999e-05,2]
[342642787,1732020636190,-500.0,9.999e-05,2]
[342642788,1732020636200,-500.0,9.999e-05,2]
[342642789,1732020636209,-319.67,9.999e-05,2]
[342642790,1732020636219,-500.0,9.999e-05,2]
[342642791,1732020636229,-500.0,9.999e-05,2]
[342642792,1732020636238,-500.0,9.999e-05,2]
[342642793,1732020636248,-308.43,9.999e-05,2]
[342642794,1732020636257,-500.0,9.999e-05,2]
[342642795,1732020636267,-500.0,9.999e-05,2]
[342642796,1732020636276,-500.0,9.999e-05,2]
[342642797,1732020636285,-500.0,9.999e-05,2]
[342642798,1732020636295,-581.74,9.999e-05,2]
[342642799,1732020636304,-500.0,9.999e-05,2]
[342642800,1732020636313,-476.86,9.999e-05,2]
[342642801,1732020636322,-500.0,9.999e-05,2]
[342642802,1732020636331,-500.0,9.999e-05,2]
[342642803,1732020636341,-500.0,9.999e-05,2]
[342642804,1732020636350,-500.0,9.999e-05,2]
[342642805,1732020636363,-500.0,9.999e-05,2]
[342642806,1732020636373,-388.22,9.999e-05,2]
[342642807,1732020636383,-500.0,9.999e-05,2]
[342642808,1732020636392,-500.0,9.999e-05,2]
[342642809,1732020636402,-500.0,9.999e-05,2]
[342642810,1732020636411,-152.13,9.999e-05,2]
[342642811,1732020636420,-500.0,9.999e-05,2]
[342642812,1732020636430,-500.0,9.999e-05,2]
[342642813,1732020636439,-468.83,9.999e-05,2]